Workbook

Sheet 簡易様式
B1: 就労証明書
B2: 富津市長 | J2: 宛
V3: 証明日 | Y3: 西暦 | AC3: 年 | AF3: 月 | AI3: 日
V4: 事業所名
V5: 代表者名
V6: 所在地
V7: 電話番号 | AB7: ― | AF7: ―
V8: 担当者名
V9: 記載者連絡先 | AB9: ― | AF9: ―
B10: 下記の内容について、事実であることを証明いたします。
B11: ※本証明書の内容について、就労先事業者等に無断で作成し又は改変を行ったときには、刑法上の罪に問われる場合があります。
B13: No. | C13: 項目 | I13: 記載欄
B14: 1 | C14: 業種 | I14: □ | J14: 農業・林業 | M14: □ | N14: 漁業 | Q14: □ | R14: 鉱業・採石業・砂利採取業 | W14: □ | X14: 建設業 | Z14: □ | AA14: 製造業 | AC14: □ | AD14: 電気・ガス・熱供給・水道業
I15: □ | J15: 情報通信業 | M15: □ | N15: 運輸業・郵便業 | Q15: □ | R15: 卸売業・小売業 | W15: □ | X15: 金融業・保険業 | AC15: □ | AD15: 不動産業・物品賃貸業
I16: □ | J16: 学術研究・専門・技術サービス | Q16: □ | R16: 宿泊業・飲食サービス業 | W16: □ | X16: 生活関連サービス業・娯楽業 | AD16: □ | AE16: 医療・福祉
I17: □ | J17: 教育・学習支援業 | N17: □ | O17: 複合サービス事業 | S17: □ | T17: 公務 | W17: □ | X17: その他（ | AG17: ）
B18: 2 | C18: フリガナ
C19: 本人氏名 | AA19: 生年 月日 | AE19: 年 | AG19: 月 | AI19: 日
B20: 3 | C20: 雇用(予定)期間等 | I20: □ | J20: 無期 | K20: □ | L20: 有期 | M20: 期間 （無期の場合は雇用開始日のみ） | V20: 年 | X20: 月 | Z20: 日 | AA20: ～ | AD20: 年 | AF20: 月 | AH20: 日
B21: 4 | C21: 本人就労先事業所 | I21: 名称
I22: 住所
B23: 5 | C23: 雇用の形態 | I23: □ | J23: 正社員 | L23: □ | M23: パート・アルバイト | Q23: □ | R23: 派遣社員 | T23: □ | U23: 契約社員 | W23: □ | X23: 会計年度任用職員 | AB23: □ | AC23: 非常勤・臨時職員 | AG23: □ | AH23: 役員
I24: □ | J24: 自営業主 | L24: □ | M24: 自営業専従者 | Q24: □ | R24: 家族従業者 | U24: □ | V24: 内職 | W24: □ | X24: 業務委託 | AA24: □ | AB24: その他( | AI24: )
B25: 6 | C25: 就労時間 (固定就労の場合) | I25: 月 | J25: 火 | K25: 水 | L25: 木 | M25: 金 | N25: 土 | O25: 日 | P25: 祝日 | S25: 合計 時間 | U25: 月間 | Y25: 時間 | AC25: 分 | AD25: （うち休憩時間 | AI25: 分）
I26: □ | J26: □ | K26: □ | L26: □ | M26: □ | N26: □ | O26: □ | P26: □
I27: 一月当たりの就労日数 | O27: 月間 | T27: 日 | U27: 一週当たりの就労日数 | AA27: 週間 | AF27: 日
I28: 平日 | M28: 時 | P28: 分 | S28: ～ | V28: 時 | Y28: 分 | Z28: （うち休憩時間 | AE28: 分）
I29: 土曜 | M29: 時 | P29: 分 | S29: ～ | V29: 時 | Y29: 分 | Z29: （うち休憩時間 | AE29: 分）
I30: 日祝 | M30: 時 | P30: 分 | S30: ～ | V30: 時 | Y30: 分 | Z30: （うち休憩時間 | AE30: 分）
C31: 就労時間 (変則就労の場合) | I31: 合計時間 | M31: □ | N31: 月間 | P31: □ | Q31: 週間 | U31: 時間 | Y31: 分 | Z31: （うち休憩時間 | AE31: 分）
I32: 就労日数 | M32: □ | N32: 月間 | P32: □ | Q32: 週間 | U32: 日
I33: 主な就労時間帯 ・シフト時間帯 | O33: 時 | R33: 分 | S33: ～ | V33: 時 | Y33: 分 | Z33: （うち休憩時間 | AE33: 分）
B34: 7 | C34: 就労実績 ※日数に有給休暇を含み、 時間数に休憩・残業時間を含む | I34: 年月 | M34: 年 | P34: 月 | R34: 年月 | V34: 年 | Y34: 月 | AA34: 年月 | AE34: 年 | AH34: 月
K35: 日／月 | O35: 時間／月 | T35: 日／月 | X35: 時間／月 | AC35: 日／月 | AG35: 時間／月
B36: 8 | C36: 産前･産後休業の取得 ※取得予定を含む | I36: □ | J36: 取得予定 | L36: □ | M36: 取得中
I37: 期間 | M37: 年 | P37: 月 | S37: 日 | U37: ～ | Z37: 年 | AC37: 月 | AF37: 日
B38: 9 | C38: 育児休業の取得 ※取得予定を含む | I38: □ | J38: 取得予定 | L38: □ | M38: 取得中 | O38: □ | P38: 取得済み
I39: 期間 | M39: 年 | O39: 月 | Q39: 日 | R39: ～ | U39: 年 | W39: 月 | Y39: 日
B40: 10 | C40: 産休・育休以外の休業の 取得 | I40: □ | J40: 取得予定 | L40: □ | M40: 取得中 | O40: □ | P40: 取得済み | R40: 理由 | T40: □ | U40: 介護休業 | X40: □ | Y40: 病休 | AA40: □ | AB40: その他（ | AI40: ）
I41: 期間 | M41: 年 | O41: 月 | Q41: 日 | R41: ～ | U41: 年 | W41: 月 | Y41: 日
B42: 11 | C42: 復職（予定）年月日 | I42: □ | J42: 復職予定 | L42: □ | M42: 復職済み | R42: 年 | U42: 月 | X42: 日
B43: 12 | C43: 育児のための短時間 勤務制度利用有無 ※取得予定を含む | I43: □ | J43: 取得予定 | L43: □ | M43: 取得中 | R43: 期間 | V43: 年 | X43: 月 | Z43: 日 | AA43: ～ | AD43: 年 | AF43: 月 | AH43: 日
I44: 主な就労時間帯 ・シフト時間帯 | O44: 時 | R44: 分 | S44: ～ | V44: 時 | Y44: 分 | Z44: （うち休憩時間 | AE44: 分）
B45: 13 | C45: 保育士等としての勤務実態の有無 | I45: □ | J45: 有 | K45: □ | L45: 有（予定） | N45: □ | O45: 無
B46: 14 | C46: 備考欄
B47: 富津市追加記載項目欄
B48: 15 | C48: 育児休業から復職する場合 の確認事項 | I48: 保育所（園）入園次第復職可能か | Q48: □ | R48: 可能 | T48: ・ | U48: □ | V48: 不可能
B49: （※事業者証明欄はここまで）
B50: 保護者記載欄
B51: 児童名 | J51: 生年月日 | O51: 年 | R51: 月 | U51: 日 | V51: 本人との続柄 | Z51: □ | AA51: 子 | AB51: □ | AC51: その他（ | AI51: )
B52: 施設・事業所等の利用状況等 | J52: □ | K52: 利用中（ | U52: ） | V52: □ | W52: 申込み中（ | AI52: )
B53: 児童名 | J53: 生年月日 | O53: 年 | R53: 月 | U53: 日 | V53: 本人との続柄 | Z53: □ | AA53: 子 | AB53: □ | AC53: その他（ | AI53: )
B54: 施設・事業所等の利用状況等 | J54: □ | K54: 利用中（ | U54: ） | V54: □ | W54: 申込み中（ | AI54: )
B55: 児童名 | J55: 生年月日 | O55: 年 | R55: 月 | U55: 日 | V55: 本人との続柄 | Z55: □ | AA55: 子 | AB55: □ | AC55: その他（ | AI55: )
B56: 施設・事業所等の利用状況等 | J56: □ | K56: 利用中（ | U56: ） | V56: □ | W56: 申込み中（ | AI56: )
B57: 就労先への通勤時間 | K57: 時間 | N57: 分（往復）
B58: ※就労証明書様式の記載要領は当BOOKの「記載要領」シートを参照してください。

Sheet プルダウンリスト
A1: 市区町村名 | B1: 施設名 | C1: 年 | D1: 児童生年 | E1: 生年・実績 | F1: 予定・実績 | G1: 月 | H1: 日 | I1: 時 | J1: 分 | K1: 分 | L1: 休憩時間 | M1: チェックボックス
C2: =YEAR(TODAY()) -> 2023 | D2: =YEAR(TODAY()) -> 2023 | E2: =YEAR(TODAY()) -> 2023 | F2: =F3+1 -> 2025 | G2: 1 | H2: 1 | I2: 0 | J2: 1 | K2: 0 | L2: 15 | M2: □
C3: =C2+1 -> 2024 | D3: =D2-1 -> 2022 | E3: =E2-1 -> 2022 | F3: =F4+1 -> 2024 | G3: 2 | H3: 2 | I3: 1 | J3: 2 | K3: 1 | L3: 30 | M3: ☑
C4: =C3+1 -> 2025 | D4: =D3-1 -> 2021 | E4: =E3-1 -> 2021 | F4: =YEAR(TODAY()) -> 2023 | G4: 3 | H4: 3 | I4: 2 | J4: 3 | K4: 2 | L4: 45
C5: =C4+1 -> 2026 | D5: =D4-1 -> 2020 | E5: =E4-1 -> 2020 | F5: =F4-1 -> 2022 | G5: 4 | H5: 4 | I5: 3 | J5: 4 | K5: 3 | L5: 60
C6: =C5+1 -> 2027 | D6: =D5-1 -> 2019 | E6: =E5-1 -> 2019 | F6: =F5-1 -> 2021 | G6: 5 | H6: 5 | I6: 4 | J6: 5 | K6: 4 | L6: 75
C7: =C6+1 -> 2028 | D7: =D6-1 -> 2018 | E7: =E6-1 -> 2018 | F7: =F6-1 -> 2020 | G7: 6 | H7: 6 | I7: 5 | J7: 6 | K7: 5 | L7: 90
C8: =C7+1 -> 2029 | D8: =D7-1 -> 2017 | E8: =E7-1 -> 2017 | F8: =F7-1 -> 2019 | G8: 7 | H8: 7 | I8: 6 | J8: 7 | K8: 6 | L8: 105
C9: =C8+1 -> 2030 | D9: =D8-1 -> 2016 | E9: =E8-1 -> 2016 | F9: =F8-1 -> 2018 | G9: 8 | H9: 8 | I9: 7 | J9: 8 | K9: 7 | L9: 120
C10: =C9+1 -> 2031 | D10: =D9-1 -> 2015 | E10: =E9-1 -> 2015 | F10: =F9-1 -> 2017 | G10: 9 | H10: 9 | I10: 8 | J10: 9 | K10: 8 | L10: 135
C11: =C10+1 -> 2032 | D11: =D10-1 -> 2014 | E11: =E10-1 -> 2014 | F11: =F10-1 -> 2016 | G11: 10 | H11: 10 | I11: 9 | J11: 10 | K11: 9 | L11: 150
C12: =C11+1 -> 2033 | D12: =D11-1 -> 2013 | E12: =E11-1 -> 2013 | F12: =F11-1 -> 2015 | G12: 11 | H12: 11 | I12: 10 | J12: 11 | K12: 10 | L12: 165
C13: =C12+1 -> 2034 | D13: =D12-1 -> 2012 | E13: =E12-1 -> 2012 | F13: =F12-1 -> 2014 | G13: 12 | H13: 12 | I13: 11 | J13: 12 | K13: 11 | L13: 180
C14: =C13+1 -> 2035 | D14: =D13-1 -> 2011 | E14: =E13-1 -> 2011 | F14: =F13-1 -> 2013 | H14: 13 | I14: 12 | J14: 13 | K14: 12 | L14: 195
C15: =C14+1 -> 2036 | D15: =D14-1 -> 2010 | E15: =E14-1 -> 2010 | F15: =F14-1 -> 2012 | H15: 14 | I15: 13 | J15: 14 | K15: 13 | L15: 210
C16: =C15+1 -> 2037 | D16: =D15-1 -> 2009 | E16: =E15-1 -> 2009 | F16: =F15-1 -> 2011 | H16: 15 | I16: 14 | J16: 15 | K16: 14 | L16: 225
C17: =C16+1 -> 2038 | D17: =D16-1 -> 2008 | E17: =E16-1 -> 2008 | F17: =F16-1 -> 2010 | H17: 16 | I17: 15 | J17: 16 | K17: 15 | L17: 240
C18: =C17+1 -> 2039 | D18: =D17-1 -> 2007 | E18: =E17-1 -> 2007 | F18: =F17-1 -> 2009 | H18: 17 | I18: 16 | J18: 17 | K18: 16 | L18: 255
C19: =C18+1 -> 2040 | D19: =D18-1 -> 2006 | E19: =E18-1 -> 2006 | F19: =F18-1 -> 2008 | H19: 18 | I19: 17 | J19: 18 | K19: 17 | L19: 270
C20: =C19+1 -> 2041 | D20: =D19-1 -> 2005 | E20: =E19-1 -> 2005 | F20: =F19-1 -> 2007 | H20: 19 | I20: 18 | J20: 19 | K20: 18 | L20: 285
C21: =C20+1 -> 2042 | E21: =E20-1 -> 2004 | F21: =F20-1 -> 2006 | H21: 20 | I21: 19 | J21: 20 | K21: 19 | L21: 300
C22: =C21+1 -> 2043 | E22: =E21-1 -> 2003 | F22: =F21-1 -> 2005 | H22: 21 | I22: 20 | J22: 21 | K22: 20 | L22: 315
C23: =C22+1 -> 2044 | E23: =E22-1 -> 2002 | F23: =F22-1 -> 2004 | H23: 22 | I23: 21 | J23: 22 | K23: 21 | L23: 330
C24: =C23+1 -> 2045 | E24: =E23-1 -> 2001 | F24: =F23-1 -> 2003 | H24: 23 | I24: 22 | J24: 23 | K24: 22 | L24: 345
C25: =C24+1 -> 2046 | E25: =E24-1 -> 2000 | F25: =F24-1 -> 2002 | H25: 24 | I25: 23 | J25: 24 | K25: 23 | L25: 360
C26: =C25+1 -> 2047 | E26: =E25-1 -> 1999 | F26: =F25-1 -> 2001 | H26: 25 | I26: 24 | J26: 25 | K26: 24 | L26: 375
C27: =C26+1 -> 2048 | E27: =E26-1 -> 1998 | F27: =F26-1 -> 2000 | H27: 26 | I27: 25 | J27: 26 | K27: 25 | L27: 390
C28: =C27+1 -> 2049 | E28: =E27-1 -> 1997 | F28: =F27-1 -> 1999 | H28: 27 | I28: 26 | J28: 27 | K28: 26 | L28: 405
C29: =C28+1 -> 2050 | E29: =E28-1 -> 1996 | F29: =F28-1 -> 1998 | H29: 28 | I29: 27 | J29: 28 | K29: 27 | L29: 420
C30: =C29+1 -> 2051 | E30: =E29-1 -> 1995 | F30: =F29-1 -> 1997 | H30: 29 | I30: 28 | J30: 29 | K30: 28 | L30: 435
C31: =C30+1 -> 2052 | E31: =E30-1 -> 1994 | F31: =F30-1 -> 1996 | H31: 30 | I31: 29 | J31: 30 | K31: 29 | L31: 450
E32: =E31-1 -> 1993 | F32: =F31-1 -> 1995 | H32: 31 | J32: 31 | K32: 30 | L32: 465
E33: =E32-1 -> 1992 | F33: =F32-1 -> 1994 | J33: 32 | K33: 31 | L33: 480
E34: =E33-1 -> 1991 | F34: =F33-1 -> 1993 | J34: 33 | K34: 32
E35: =E34-1 -> 1990 | F35: =F34-1 -> 1992 | J35: 34 | K35: 33
E36: =E35-1 -> 1989 | F36: =F35-1 -> 1991 | J36: 35 | K36: 34
E37: =E36-1 -> 1988 | F37: =F36-1 -> 1990 | J37: 36 | K37: 35
E38: =E37-1 -> 1987 | F38: =F37-1 -> 1989 | J38: 37 | K38: 36
E39: =E38-1 -> 1986 | F39: =F38-1 -> 1988 | J39: 38 | K39: 37
E40: =E39-1 -> 1985 | F40: =F39-1 -> 1987 | J40: 39 | K40: 38
E41: =E40-1 -> 1984 | F41: =F40-1 -> 1986 | J41: 40 | K41: 39
E42: =E41-1 -> 1983 | F42: =F41-1 -> 1985 | J42: 41 | K42: 40
E43: =E42-1 -> 1982 | F43: =F42-1 -> 1984 | J43: 42 | K43: 41
E44: =E43-1 -> 1981 | F44: =F43-1 -> 1983 | J44: 43 | K44: 42
E45: =E44-1 -> 1980 | F45: =F44-1 -> 1982 | J45: 44 | K45: 43
E46: =E45-1 -> 1979 | F46: =F45-1 -> 1981 | J46: 45 | K46: 44
E47: =E46-1 -> 1978 | F47: =F46-1 -> 1980 | J47: 46 | K47: 45
E48: =E47-1 -> 1977 | F48: =F47-1 -> 1979 | J48: 47 | K48: 46
E49: =E48-1 -> 1976 | F49: =F48-1 -> 1978 | J49: 48 | K49: 47
E50: =E49-1 -> 1975 | F50: =F49-1 -> 1977 | J50: 49 | K50: 48
E51: =E50-1 -> 1974 | F51: =F50-1 -> 1976 | J51: 50 | K51: 49
E52: =E51-1 -> 1973 | F52: =F51-1 -> 1975 | J52: 51 | K52: 50
E53: =E52-1 -> 1972 | F53: =F52-1 -> 1974 | J53: 52 | K53: 51
E54: =E53-1 -> 1971 | F54: =F53-1 -> 1973 | J54: 53 | K54: 52
E55: =E54-1 -> 1970 | F55: =F54-1 -> 1972 | J55: 54 | K55: 53
E56: =E55-1 -> 1969 | J56: 55 | K56: 54
E57: =E56-1 -> 1968 | J57: 56 | K57: 55
E58: =E57-1 -> 1967 | J58: 57 | K58: 56
E59: =E58-1 -> 1966 | J59: 58 | K59: 57
E60: =E59-1 -> 1965 | J60: 59 | K60: 58
E61: =E60-1 -> 1964 | J61: 60 | K61: 59
E62: =E61-1 -> 1963
E63: =E62-1 -> 1962
E64: =E63-1 -> 1961
E65: =E64-1 -> 1960
E66: =E65-1 -> 1959
E67: =E66-1 -> 1958
E68: =E67-1 -> 1957
E69: =E68-1 -> 1956
E70: =E69-1 -> 1955
E71: =E70-1 -> 1954
E72: =E71-1 -> 1953
E73: =E72-1 -> 1952
E74: =E73-1 -> 1951
E75: =E74-1 -> 1950
E76: =E75-1 -> 1949
E77: =E76-1 -> 1948
E78: =E77-1 -> 1947
E79: =E78-1 -> 1946
E80: =E79-1 -> 1945
E81: =E80-1 -> 1944
E82: =E81-1 -> 1943
E83: =E82-1 -> 1942
E84: =E83-1 -> 1941
E85: =E84-1 -> 1940
E86: =E85-1 -> 1939
E87: =E86-1 -> 1938
E88: =E87-1 -> 1937
E89: =E88-1 -> 1936
E90: =E89-1 -> 1935
E91: =E90-1 -> 1934
E92: =E91-1 -> 1933
E93: =E92-1 -> 1932
E94: =E93-1 -> 1931
E95: =E94-1 -> 1930
E96: =E95-1 -> 1929
E97: =E96-1 -> 1928
E98: =E97-1 -> 1927
E99: =E98-1 -> 1926
E100: =E99-1 -> 1925
E101: =E100-1 -> 1924
E102: =E101-1 -> 1923
E103: =E102-1 -> 1922
E104: =E103-1 -> 1921
E105: =E104-1 -> 1920
E106: =E105-1 -> 1919
E107: =E106-1 -> 1918
E108: =E107-1 -> 1917
